Cogmind - Beta 12 @@@ ROGUE MODE // 2023.07.14 @ 22:01:30 Player: hanzu Result: Destroyed by as-78749 with Assembled Heavy Rifle Performance ------------- Evolutions (3) 1500 Regions Visited (17) 3400 Robots Destroyed (161) 805 Value Destroyed (6873) 6873 Prototype IDs (53) 1060 Alien Tech Used (0) 0 Bonus (5078) 5078 TOTAL SCORE: 18716 Bonus ------- High Alert Combat Kills 491 Follower Combat Kills 2291 Entered Garrisons 400 Used RIF Installer 1500 Aligned with FarCom 300 Triggered Deep Caves Wall 500 Exposed GOLEM Chamber 500 Friendly Fire -904 Cogmind --------- Core Integrity 0/700 Matter 127/300 Energy 100/100 System Corruption 12% Temperature Cool (0) Movement Core (1400) Ox27 Location -7/Deep Caves Parts ------- > --- POWER (1) -------- (None) > --- PROPULSION (4) --- (None) > --- UTILITY (6) ------ Huge Storage Unit Advanced Target Analyzer > --- WEAPON (2) ------- Remote Datajack > --- INVENTORY (25) --- Improved Deuterium Engine Makeshift Power Source Makeshift Power Source F-cell Engine Zionite Light DM Reactor Zionite Light DM Reactor Zionite Glidesys I Zionite Biocell Zionite Light Carapace Zionite Heavy Carapace Authchip [R/NC] Authchip [R/Combat] Authchip [R/Combat] Authchip [R/Combat] High-powered Field Laser High-powered Field Laser Makeshift Laser Mini Assault Cannon Mini Assault Cannon Heavy Rocket Launcher Remote Datajack Chainsword Peak State ------------ > --- POWER ------------ Light Quantum Reactor > --- PROPULSION ------- Armored Huge Wheel Armored Huge Wheel > --- UTILITY ---------- Improved Heat Sink Huge Storage Unit Experimental Targeting Computer Advanced Target Analyzer Relay Coupler [Specialist] Trap Reconfigurator > --- WEAPON ----------- High-powered Field Laser Heavy Rocket Launcher > --- INVENTORY -------- Deuterium Engine Makeshift Power Source F-cell Engine Armored Huge Wheel Weapon Cycler Authchip [R/NC] Authchip [R/Combat] Authchip [R/Combat] Authchip [R/Combat] Relay Coupler [NC] Relay Coupler [Grunt] Relay Coupler [Hunter] Relay Coupler [Hunter] Backup Laser III Gatling Laser High-powered Field Laser Improved Spread Laser Makeshift Laser Barrage Gun Mini Assault Cannon Mini Assault Cannon Remote Datajack Remote Datajack Chainsword [Rating: 75] Favorites ----------- Power Light Quantum Reactor Engine Cooled Ion Engine Power Core Fission Core Reactor Light Quantum Reactor Propulsion Armored Huge Wheel Treads Advanced Treads Wheel Armored Huge Wheel Hover Unit Hover Unit Utility Hacking Suite Device Trap Reconfigurator Storage Huge Storage Unit Processor Visual Processing Unit Hackware Hacking Suite Protection Heavy Armor Plating Weapon Remote Datajack Energy Gun Precision Beam Rifle Energy Cannon Heavy Particle Cannon Ballistic Gun Assault Rifle Ballistic Cannon Improved Light Cannon Launcher Heavy Rocket Launcher Special Weapon Remote Datajack Slashing Weapon Scythe Special Melee Weapon Datajack Build | -11 -10 -10 -9 -9 -9 -8 -8 -8 -7 -7 -7 -7 -7 -7 -7 -7 -7 ------- Run | Jun Mat Min Mat Min Exi Min Mat Gar Fac Was Fac Gar Fac Low Low Zio Dee Slots Evolved 6 | . . . 2 . . . 2 . 2 . . . . . . . . Power . | . . . . . . . . . . . . . . . . . . Propulsion 2 | . . . 2 . . . . . . . . . . . . . . Utility 4 | . . . . . . . 2 . 2 . . . . . . . . Weapon . | . . . . . . . . . . . . . . . . . . Parts Attached 188 | 6 2 8 29 1 1 3 19 29 26 . 7 17 12 3 4 10 11 Power 15 | 1 1 . 5 . . . . 3 1 . . 3 . . . . 1 Engine 10 | 1 1 . 4 . . . . 1 . . . 2 . . . . 1 Core 4 | . . . 1 . . . . 2 1 . . . . . . . . Reactor 1 | . . . . . . . . . . . . 1 . . . . . Propulsion 39 | 2 . 2 10 . . 1 5 11 2 . . 3 . 1 . 1 1 Treads 16 | . . . . . . . 4 11 . . . . . . . . 1 Leg . | . . . . . . . . . . . . . . . . . . Wheel 20 | 2 . . 9 . . 1 1 . 2 . . 3 . 1 . 1 . Hover 3 | . . 2 1 . . . . . . . . . . . . . . Flight . | . . . . . . . . . . . . . . . . . . Utility 75 | 1 1 1 5 . . . 7 8 16 . 7 7 11 2 3 4 2 Device 20 | . . . 4 . . . 2 2 6 . . . 1 1 3 1 . Storage 4 | 1 . 1 1 . . . . 1 . . . . . . . . . Processor 7 | . 1 . . . . . 1 1 1 . . . . . . 3 . Hackware 38 | . . . . . . . 2 2 9 . 7 7 10 1 . . . Protection 6 | . . . . . . . 2 2 . . . . . . . . 2 Artifact . | . . . . . . . . . . . . . . . . . . Weapon 59 | 2 . 5 9 1 1 2 7 7 7 . . 4 1 . 1 5 7 Energy Gun 18 | 1 . 1 1 . . . 3 5 1 . . 1 1 . . 1 3 Energy Cannon 1 | . . . . . . . 1 . . . . . . . . . . Ballistic Gun 8 | 1 . 4 3 . . . . . . . . . . . . . . Ballistic Cannon 13 | . . . 4 1 . 2 . . . . . 1 . . 1 2 2 Launcher 5 | . . . . . . . 1 . . . . 1 . . . 2 1 Special Weapon 5 | . . . 1 . . . . . 2 . . 1 . . . . 1 Impact Weapon . | . . . . . . . . . . . . . . . . . . Slashing Weapon 4 | . . . . . . . 2 . 2 . . . . . . . . Piercing Weapon . | . . . . . . . . . . . . . . . . . . Special Melee Weapon 5 | . . . . . 1 . . 2 2 . . . . . . . . Unidentified Prototypes 9 | . . . 3 . . . 1 . . . . . . . . 1 4 Corrupted Parts 2 | . . . . . . . . . 1 . 1 . . . . . . System Corruption 6 | . . . . . . . . . 1 . 5 . . . . . . Parts Lost 41 | . 2 5 5 1 . 1 7 4 . . . 1 1 . . 2 12 Power 6 | . 1 1 2 . . . . . . . . . . . . . 2 Propulsion 12 | . 1 1 2 . . 1 3 1 . . . . . . . . 3 Utility 13 | . . . 1 . . . 3 1 . . . . 1 . . 2 5 Weapon 10 | . . 3 . 1 . . 1 2 . . . 1 . . . . 2 Highest Loss Streak 8 | . 2 3 2 1 . 1 3 2 . . . 1 1 . . 1 8 To Critical Strikes 1 | . . . . . . . . 1 . . . . . . . . . Average Slot Usage (%) 85 | . 91 83 92 99 86 99 98 91 84 69 79 82 79 71 75 80 72 Engine 4 | . 12 3 8 11 11 11 9 4 . . . 4 . . . . 5 Core 2 | . . . 1 . . . . 4 7 7 7 1 . . . . . Reactor 1 | . . . . . . . . . . . . . 7 7 7 7 1 Treads 7 | . . . . . . . 15 35 8 . . . . . . . 5 Wheel 16 | . 22 2 37 44 44 43 19 . 10 15 15 15 15 14 15 14 8 Device 7 | . . . 9 11 11 11 13 7 5 7 7 7 1 2 7 15 6 Storage 8 | . 14 14 11 11 11 11 9 9 7 7 7 7 7 7 7 7 7 Processor 2 | . 12 14 1 . . . 1 . 1 . . . . . . 4 14 Hackware 14 | . . . . . . . 6 1 27 15 26 28 32 23 23 15 . Protection 2 | . . . . . . . 5 10 . . . . . . . . 5 Energy Gun 5 | . 14 3 1 . . . 8 15 7 7 7 . 4 7 6 2 9 Ballistic Gun 1 | . 14 24 3 . . . . . . . . . . . . . . Ballistic Cannon 4 | . . . 16 21 . 22 5 . . . . 6 . . . 4 3 Special Weapon 2 | . . . . . . . . . 1 7 7 6 7 7 7 1 . Naked Turns . | . . . . . . . . . . . . . . . . . . Heaviest Build 111 | 12 12 14 97 97 90 97 109 111 98 93 93 106 106 103 104 109 109 Greatest Support 88 | 26 26 12 52 46 46 46 86 88 88 56 56 56 56 56 56 56 56 Greatest Overweight (x) 9 | . 1 2 3 2 1 2 9 1 3 1 1 1 1 1 1 3 3 Average Overweight (x) 1 | . . . 1 2 1 2 2 1 1 1 1 1 1 1 1 1 2 Largest Inventory Capacity 25 | 8 8 10 25 25 25 25 25 25 25 25 25 25 25 25 25 25 25 Average Capacity 23 | 6 8 9 23 25 25 25 25 25 25 25 25 25 25 25 25 25 25 Most Carried 25 | 5 8 8 23 23 25 24 25 25 25 25 25 25 25 25 21 25 25 Average Carried 21 | 1 5 6 16 21 24 23 23 24 23 24 23 24 23 20 19 21 24 Final Capacity 25 | 8 8 10 25 25 25 25 25 25 25 25 25 25 25 25 25 25 25 Final Carried 25 | 1 7 6 22 22 25 23 25 25 24 25 23 25 23 19 20 24 23 Class Distribution -------------------- 38% | Mutant 30% | Bothacker-Mutant 27% | Commander-Mutant Dominant Class ---------------- Mutant | -10/Materials Mutant | -10/Mines Mutant | -9/Materials Mutant | -9/Mines Mutant | -9/Exiles Mutant | -8/Mines Mutant | -8/Materials Mutant | -8/Garrison Bothacker-Mutant | -7/Factory Bothacker-Mutant | -7/Waste Bothacker-Mutant | -7/Factory Commander-Mutant | -7/Garrison Commander-Mutant | -7/Factory Commander-Mutant | -7/Lower Caves Commander-Mutant | -7/Lower Caves Bothacker-Mutant | -7/Zion Mutant | -7/Deep Caves Resources | -11 -10 -10 -9 -9 -9 -8 -8 -8 -7 -7 -7 -7 -7 -7 -7 -7 -7 ----------- Run | Jun Mat Min Mat Min Exi Min Mat Gar Fac Was Fac Gar Fac Low Low Zio Dee Matter Collected 5504 | 201 196 110 963 45 . 22 716 502 359 7 132 571 421 129 39 895 196 Remotely . | . . . . . . . . . . . . . . . . . . Salvage Created 5020 | . 401 196 1159 36 . 24 1053 947 140 . 51 99 65 41 . 482 326 Parts 313 | . 27 12 110 7 . 4 46 44 6 . 3 3 6 4 . 39 2 Haulers Intercepted 9 | . 1 . 5 . . . 3 . . . . . . . . . . Recyclers Shooed 2 | . 1 . 1 . . . . . . . . . . . . . . Parts Field Recycled . | . . . . . . . . . . . . . . . . . . Retrieved Matter . | . . . . . . . . . . . . . . . . . . Parts Self-Destructed 20 | . . . . . . . . . . . . . . 17 3 . . Prevented . | . . . . . . . . . . . . . . . . . . Kills | -11 -10 -10 -9 -9 -9 -8 -8 -8 -7 -7 -7 -7 -7 -7 -7 -7 -7 ------- Run | Jun Mat Min Mat Min Exi Min Mat Gar Fac Was Fac Gar Fac Low Low Zio Dee Combat Hostiles Destroyed 104 | . 5 6 27 3 . 2 17 25 3 . . 2 2 1 . 5 6 Melee 1 | . . . . . . . . . 1 . . . . . . . . Guns 48 | . 5 6 8 . . . 5 15 2 . . 1 2 1 . 3 . Cannons 34 | . . . 19 3 . 2 7 . . . . 1 . . . 1 1 AOE 18 | . . . . . . . 3 9 . . . . . . . 1 5 Classes Destroyed 21 | . 8 . 3 . . . 1 3 . . 1 1 . . . 3 1 Worker 5 | . 1 . 3 . . . . . 1 . . . . . . . . Builder 5 | . 1 . 4 . . . . . . . . . . . . . . Tunneler 2 | . 1 . . 1 . . . . . . . . . . . . . Hauler 9 | . 1 . 5 . . . 3 . . . . . . . . . . Recycler 1 | . 1 . . . . . . . . . . . . . . . . Operator 3 | . . . 3 . . . . . . . . . . . . . . Watcher 13 | . 3 . 5 . . . 4 . . . . . 1 . . . . Swarmer 22 | . 3 3 9 3 . 2 . . . . . . 2 . . . . Cutter 1 | . . . . . . . . 1 . . . . . . . . . Saboteur 1 | . . . . . . . . . . . . 1 . . . . . Grunt 33 | . 2 3 7 . . . 8 8 2 . . 2 . 1 . . . Brawler 3 | . . . 2 . . . 1 . . . . . . . . . . Duelist 4 | . . . . . . . . 4 . . . . . . . . . Sentry 22 | . . . 9 . . . 7 6 . . . . . . . . . Hunter 7 | . . . . . . . 1 5 . . . . . . . 1 . Programmer 2 | . . . . . . . . 1 1 . . . . . . . . Zionite 16 | . . . . . . . . . . . . . . . . 16 . Z-Light 6 | . . . . . . . . . . . . . . . . . 6 Tinkerer 3 | . . . . . . . . . . . . . . . . 3 . Butcher 1 | . . . . . . . . . . . . . . . . 1 . Martyr 1 | . . . . . . . . . . . 1 . . . . . . Mutant 4 | . . . . . . . . . . . . . . . . 4 . Best Kill Streak 11 | . 4 3 11 4 . 2 3 8 3 . . 1 2 1 . 5 6 Combat Bots Only 8 | . 3 3 8 3 . 2 3 8 2 . . 1 2 1 . 1 6 Max Kills in Single Turn 2 | . 1 2 2 2 . 1 2 2 1 . 1 1 1 1 . 1 2 Gunslinging 1 | . . 1 . . . . . . . . . . . . . . . Exploded 2 | . . . . . . . 2 2 . . . . . . . 1 2 Melee 1 | . . . . . . . . . 1 . . . . . . . . Uniques/NPCs Destroyed 1 | . . . . . . . . . . . . . . . . 1 . Imprinter (-7/Zion) Combat | -11 -10 -10 -9 -9 -9 -8 -8 -8 -7 -7 -7 -7 -7 -7 -7 -7 -7 -------- Run | Jun Mat Min Mat Min Exi Min Mat Gar Fac Was Fac Gar Fac Low Low Zio Dee Damage Taken 8192 | . 276 447 1193 63 . 72 961 1652 646 . 68 359 93 28 . 565 1769 Core 1463 | . 61 139 260 . . 19 175 101 96 . . 63 . . . 100 449 Absorbed by Shields 77 | . . . . . . . . 15 . . . . 31 . . 31 . Redirected to Shielding 172 | . . . . . . . . . . . . . . . . . 172 Regen/Repaired (Parts) 450 | . . . 113 . . . . . . . . 112 40 13 . 172 . Core Remaining (%) 49 | 100 . 20 . . . 30 . 49 . . . . . . . . . Volleys Fired 589 | . 42 25 111 5 . 6 74 80 13 . 12 57 28 6 . 100 30 Largest 2 | . 2 2 2 2 . 2 2 2 1 . 1 1 1 1 . 2 2 Hottest 124 | . 60 85 88 78 . 78 122 124 80 . 80 80 80 80 . 109 120 Shots Fired 944 | . 84 48 224 9 . 12 141 121 14 . 13 58 30 7 1 132 50 Gun 493 | . 84 48 82 . . . 70 107 11 . 5 4 6 3 1 44 28 Cannon 336 | . . . 142 9 . 12 69 . . . . 38 . . . 52 14 Launcher 63 | . . . . . . . 2 14 . . . 4 1 . . 35 7 Special 52 | . . . . . . . . . 3 . 8 12 23 4 . 1 1 Kinetic 444 | . 42 46 193 9 . 12 38 . . . . 38 . . . 52 14 Thermal 330 | . . 1 31 . . . 101 107 11 . 5 4 6 3 1 44 16 Explosive 63 | . . . . . . . 2 14 . . . 4 1 . . 35 7 Electromagnetic 43 | . 42 1 . . . . . . . . . . . . . . . Phasic 12 | . . . . . . . . . . . . . . . . . 12 Robot Hit Streak 22 | . 12 7 10 3 . 2 15 18 9 . 18 12 4 4 . 11 22 Robot Miss Streak 5 | . 5 2 4 1 . 2 2 1 3 . 1 3 5 3 . 4 4 Penetration Max . | . . . . . . . . . . . . . . . . . . Secondary Targets 5 | . . 2 1 . . . . 2 . . . . . . . . . Max Gunslinging Chain 1 | . . 1 1 . . . . 1 . . . . . . . . . Shots Hit Robots 598 | . 49 36 126 5 4 5 99 85 41 . 13 19 16 4 . 69 27 Core Hits 267 | . 16 14 52 4 . 2 33 57 8 . 6 4 9 3 . 34 25 Critical Kills . | . . . . . . . . . . . . . . . . . . Critical Parts Destroyed . | . . . . . . . . . . . . . . . . . . Critical Strikes 27 | . . . 8 . . 1 6 6 . . . . . . . 5 1 Burn 19 | . . . 2 . . . 6 6 . . . . . . . 5 . Blast 8 | . . . 6 . . 1 . . . . . . . . . . 1 Melee Attacks 41 | . . . . . 4 . 1 1 35 . . . . . . . . Impact . | . . . . . . . . . . . . . . . . . . Slashing 3 | . . . . . . . 1 . 2 . . . . . . . . Piercing . | . . . . . . . . . . . . . . . . . . Sneak Attacks 17 | . . . . . 4 . . . 13 . . . . . . . . Combat Hostiles 2 | . . . . . . . . . 2 . . . . . . . . Follow-up Attacks . | . . . . . . . . . . . . . . . . . . Damage Inflicted 13648 | . 678 366 2586 139 . 117 2271 2646 279 . 119 276 291 36 . 2315 1529 Guns 6080 | . 678 366 813 . . . 999 1504 249 . 119 37 102 36 . 583 594 Cannons 4250 | . . . 1773 139 . 117 1022 . . . . 211 . . . 758 230 Explosions 3278 | . . . . . . . 250 1142 . . . 28 179 . . 974 705 Melee 30 | . . . . . . . . . 30 . . . . . . . . Ramming 10 | . . . . . . . . . . . . . 10 . . . . Kinetic 4757 | . 264 349 2253 139 . 117 436 . . . . 211 . . . 758 230 Thermal 4862 | . . 17 333 . . . 1585 1504 249 . 119 37 102 36 . 583 297 Explosive 3278 | . . . . . . . 250 1142 . . . 28 179 . . 974 705 Electromagnetic 414 | . 414 . . . . . . . . . . . . . . . . Impact . | . . . . . . . . . . . . . . . . . . Slashing 30 | . . . . . . . . . 30 . . . . . . . . Piercing . | . . . . . . . . . . . . . . . . . . Phasic 297 | . . . . . . . . . . . . . . . . . 297 Highest Corruption 12 | . 1 1 4 4 4 4 12 12 1 1 7 8 12 12 12 12 12 Average Corruption 8 | . 1 1 4 4 4 4 11 12 1 1 5 7 9 12 12 12 12 Corruption Purged . | . . . . . . . . . . . . . . . . . . Corruption Blocked . | . . . . . . . . . . . . . . . . . . Effects 418 | . 1 3 28 3 3 12 20 91 4 . 21 84 28 26 21 49 24 Message Errors 97 | . . . 9 1 . 1 3 27 1 . 8 20 2 7 3 10 5 Matter Fused 99 | . . 1 6 1 1 5 5 14 2 . 4 25 10 6 6 7 6 Heat Flow Errors 44 | . 1 1 . 1 . 3 1 10 . . 3 8 2 6 4 3 1 Energy Discharges 45 | . . . 5 . 1 . 1 13 . . 1 9 1 2 1 9 2 Parts Rejected 10 | . . 1 2 . . . . 3 . . . 2 . 1 . 1 . Parts Fused 8 | . . . . . . 1 1 2 . . . . 1 2 . 1 . Data Loss (minor) 41 | . . . 2 . . 1 1 10 . . 4 11 3 . 4 4 1 Data Loss (major) 28 | . . . 2 . 1 1 5 4 . . . 2 5 1 2 4 1 Misfires 17 | . . . 2 . . . . 3 1 . 1 2 2 1 1 2 2 Alerts 10 | . . . . . . . 1 1 . . . 4 2 . . 1 1 Misdirections 3 | . . . . . . . . . . . . . . . . 1 2 Weapon Failures 16 | . . . . . . . 2 4 . . . 1 . . . 6 3 Overload Shots . | . . . . . . . . . . . . . . . . . . Overflow Damage 159 | . . . 26 6 . . 9 28 . . . 23 . . . 17 50 Projectiles 81 | . . . 26 6 . . 9 . . . . 23 . . . 17 . Explosions 78 | . . . . . . . . 28 . . . . . . . . 50 Melee . | . . . . . . . . . . . . . . . . . . Knockbacks 27 | . . . 5 3 . 3 8 . . . . 3 . . . 3 2 Impact . | . . . . . . . . . . . . . . . . . . Kinetic 25 | . . . 5 2 . 3 7 . . . . 3 . . . 3 2 Secondary 2 | . . . . 1 . . 1 . . . . . . . . . . Self-Inflicted Damage 204 | . . . . . . . . 124 . . . 20 4 . . 41 15 Shots 7 | . . . . . . . . 3 . . . 1 . . . 2 1 Rammed 2 | . . . . . . . . . . . . . 2 . . . . Targets Rammed 2 | . . . . . . . . . . . . . 2 . . . . Kicked . | . . . . . . . . . . . . . . . . . . Crushed . | . . . . . . . . . . . . . . . . . . Highest Temperature 464 | . 181 223 350 204 . 245 288 464 224 . 236 242 208 201 251 202 180 Average Temperature 81 | . 39 39 104 106 . 106 35 116 77 . 73 79 80 64 92 48 59 Received Heat Transfer 2154 | . 84 222 333 . . . 459 468 102 . . 102 18 . . 51 315 Effects 4 | . . . 1 . . . . 1 . . . 2 . . . . . Shutdowns 1 | . . . 1 . . . . . . . . . . . . . . Energy Bleed 1 | . . . . . . . . 1 . . . . . . . . . Interference 2 | . . . . . . . . . . . . 2 . . . . . Siege Activations . | . . . . . . . . . . . . . . . . . . Robots Corrupted 1 | . 1 . . . . . . . . . . . . . . . . Combat Hostiles . | . . . . . . . . . . . . . . . . . . Parts Fried . | . . . . . . . . . . . . . . . . . . Impact Corruptions . | . . . . . . . . . . . . . . . . . . Robots Melted 4 | . . . . . . . 2 1 . . . . . . . 1 . Combat Hostiles 3 | . . . . . . . 2 1 . . . . . . . . . Parts Melted 25 | . . . 2 . . . 11 7 1 . 1 . 1 . . 2 . Heat Transferred 10770 | . . 37 925 . . . 3367 3515 525 . 275 75 237 75 . 1332 407 Parts Sabotaged . | . . . . . . . . . . . . . . . . . . Parts Stolen . | . . . . . . . . . . . . . . . . . . Parts Stripped . | . . . . . . . . . . . . . . . . . . Power Chain Reactions . | . . . . . . . . . . . . . . . . . . Missiles Intercepted . | . . . . . . . . . . . . . . . . . . Alert | -11 -10 -10 -9 -9 -9 -8 -8 -8 -7 -7 -7 -7 -7 -7 -7 -7 -7 ------- Run | Jun Mat Min Mat Min Exi Min Mat Gar Fac Was Fac Gar Fac Low Low Zio Dee Peak Influence 1749 | . 287 113 546 277 . 85 237 1704 930 193 313 1749 1690 . . . . Initial 917 | . . 33 17 212 . . 33 144 894 193 135 41 917 . . . . Average 582 | . 111 84 254 230 . 20 100 946 697 193 161 922 1253 . . . . Maximum Alert Level 5 | . 1 . 2 1 . . 1 5 3 . 1 5 5 . . . . Low Security (%) 34 | 100 82 100 52 . . 100 95 3 . 100 80 2 . . . . . Level 1 8 | . 17 . 14 100 . . 4 8 . . 19 5 . . . . . Level 2 16 | . . . 32 . . . . 25 55 . . 6 . . . . . Level 3 23 | . . . . . . . . 17 44 . . 61 30 . . . . Level 4 13 | . . . . . . . . 36 . . . 16 65 . . . . Level 5 3 | . . . . . . . . 8 . . . 7 3 . . . . High Security . | . . . . . . . . . . . . . . . . . . Max Security . | . . . . . . . . . . . . . . . . . . Squads Dispatched 18 | . 2 . 3 . . . 4 . 3 . 2 . 4 . . . . Investigation 8 | . 2 . 1 . . . 4 . . . 1 . . . . . . Extermination 4 | . . . . . . . . . 3 . 1 . . . . . . Reinforcement 3 | . . . 2 . . . . . . . . . 1 . . . . Assault 3 | . . . . . . . . . . . . . 3 . . . . Garrison . | . . . . . . . . . . . . . . . . . . Intercept . | . . . . . . . . . . . . . . . . . . Searches Triggered . | . . . . . . . . . . . . . . . . . . Construction Impeded . | . . . . . . . . . . . . . . . . . . Haulers Reinforced . | . . . . . . . . . . . . . . . . . . Active Scanning Responses . | . . . . . . . . . . . . . . . . . . Cargo Convoy Interrupts . | . . . . . . . . . . . . . . . . . . Stealth | -11 -10 -10 -9 -9 -9 -8 -8 -8 -7 -7 -7 -7 -7 -7 -7 -7 -7 --------- Run | Jun Mat Min Mat Min Exi Min Mat Gar Fac Was Fac Gar Fac Low Low Zio Dee Distress Signals 7 | . . . 4 . . . 1 . . . . . 1 . . 1 . Communications Jammed . | . . . . . . . . . . . . . . . . . . Distress Signals . | . . . . . . . . . . . . . . . . . . Times Spotted 312 | . 14 7 43 3 . 4 31 31 18 . 4 28 26 5 . 79 19 Peak Tracking Total 37 | . 3 3 6 3 . 3 3 5 4 . 3 4 6 3 . 11 37 Tactical Retreats 12 | . 2 1 2 . . 2 2 . . . . . 1 . . 2 . Traps | -11 -10 -10 -9 -9 -9 -8 -8 -8 -7 -7 -7 -7 -7 -7 -7 -7 -7 ------- Run | Jun Mat Min Mat Min Exi Min Mat Gar Fac Was Fac Gar Fac Low Low Zio Dee Traps Triggered 29 | . 1 . 1 . . . 2 11 3 . 1 10 . . . . . Indirectly . | . . . . . . . . . . . . . . . . . . Trap Hack Attempts 3 | . . . . . . . . . 3 . . . . . . . . Triggered . | . . . . . . . . . . . . . . . . . . Disarmed . | . . . . . . . . . . . . . . . . . . Reprogrammed 1 | . . . . . . . . . 1 . . . . . . . . Reused 3 | . . . . . . . . . 3 . . . . . . . . Traps Reconfigurated 44 | . . . . . . . . . 13 . 3 18 10 . . . . Traps Extracted . | . . . . . . . . . . . . . . . . . . Installed . | . . . . . . . . . . . . . . . . . . Triggered 3 | . . . . . . . . . 3 . . . . . . . . Machines | -11 -10 -10 -9 -9 -9 -8 -8 -8 -7 -7 -7 -7 -7 -7 -7 -7 -7 ---------- Run | Jun Mat Min Mat Min Exi Min Mat Gar Fac Was Fac Gar Fac Low Low Zio Dee Machines Disabled 28 | . 1 . 4 . . . 3 8 . . . 6 3 . . 2 1 Max in Single Turn 2 | . 1 . 1 . . . 1 2 . . . 1 . . . 1 1 Garrison Relay 10 | . . . . . . . . 5 . . . 5 . . . . . Phase Generator 1 | . . . . . . . . 1 . . . . . . . . . Machines Repaired . | . . . . . . . . . . . . . . . . . . Machines Sabotaged . | . . . . . . . . . . . . . . . . . . Overloaded Fab Kills . | . . . . . . . . . . . . . . . . . . Hacking | -11 -10 -10 -9 -9 -9 -8 -8 -8 -7 -7 -7 -7 -7 -7 -7 -7 -7 --------- Run | Jun Mat Min Mat Min Exi Min Mat Gar Fac Was Fac Gar Fac Low Low Zio Dee Machines Accessed 56 | . 4 1 14 . 2 . 15 3 6 . 4 2 4 1 . . . Terminals 37 | . 3 1 9 . . . 12 3 3 . . 2 3 1 . . . Fabricators 3 | . . . . . . . . . 1 . 1 . 1 . . . . Repair Stations 3 | . . . 2 . . . . . . . 1 . . . . . . Recycling Units 5 | . 1 . 1 . . . 1 . 2 . . . . . . . . Scanalyzers 4 | . . . 2 . . . 1 . . . 1 . . . . . . Garrison Access 2 | . . . . . . . 1 . . . 1 . . . . . . Total Hacks 196 | . 19 4 50 . 2 . 51 8 16 . 27 5 13 1 . . . Successful 109 | . 8 . 26 . 2 . 24 2 14 . 21 2 9 1 . . . Failed 86 | . 10 4 24 . . . 27 6 2 . 6 3 4 . . . . Catastrophic 8 | . 2 . 1 . . . 1 2 1 . . . 1 . . . . Database Lockouts 1 | . 1 . . . . . . . . . . . . . . . . Manual 101 | . 16 4 22 . 1 . 32 1 12 . 6 . 3 . . 4 . Terminals 123 | . 16 4 33 . . . 44 8 7 . . 5 5 1 . . . Fabricators 22 | . . . . . . . . . 3 . 11 . 8 . . . . Repair Stations 11 | . . . 7 . . . . . . . 4 . . . . . . Recycling Units 14 | . 3 . 2 . . . 3 . 6 . . . . . . . . Scanalyzers 22 | . . . 8 . . . 3 . . . 11 . . . . . . Garrison Access 2 | . . . . . . . 1 . . . 1 . . . . . . Terminal Hacks 35 | . 4 . 8 . 2 . 12 2 2 . . 2 2 1 . . . Record 2 | . . . . . 1 . . . . . . . . 1 . . . Robot Schematic 2 | . 1 . . . . . . . 1 . . . . . . . . Robot Analysis 10 | . 3 . 5 . . . 2 . . . . . . . . . . Prototype ID Bank 2 | . . . . . . . 2 . . . . . . . . . . Open Door 2 | . . . . . . . . 1 . . . 1 . . . . . Level Access Points 1 | . . . 1 . . . . . . . . . . . . . . Branch Access Points 2 | . . . . . . . 1 . . . . . 1 . . . . Emergency Access Points 2 | . . . . . . . 1 . . . . 1 . . . . . Terminal Index 3 | . . . 1 . . . 1 . 1 . . . . . . . . Garrison Index 1 | . . . . . . . 1 . . . . . . . . . . Unreport Threat 1 | . . . 1 . . . . . . . . . . . . . . Locate Traps 2 | . . . . . . . 1 . . . . . 1 . . . . Hauler Manifests 1 | . . . . . . . 1 . . . . . . . . . . Zone Layout 2 | . . . . . . . 2 . . . . . . . . . . Patrol Navigation 1 | . . . . . . . . 1 . . . . . . . . . EX-Prototype ID Bank 1 | . . . . . 1 . . . . . . . . . . . . Fabricator Hacks 18 | . . . . . . . . . 3 . 9 . 6 . . . . Network Status 1 | . . . . . . . . . 1 . . . . . . . . Load Schematic 8 | . . . . . . . . . 1 . 4 . 3 . . . . Build 9 | . . . . . . . . . 1 . 5 . 3 . . . . Repair Station Hacks 5 | . . . 5 . . . . . . . . . . . . . . Scan Component 3 | . . . 3 . . . . . . . . . . . . . . Repair 2 | . . . 2 . . . . . . . . . . . . . . Recycling Unit Hacks 2 | . . . . . . . 1 . 1 . . . . . . . . Retrieve Components 2 | . . . . . . . 1 . 1 . . . . . . . . Scanalyzer 18 | . . . 7 . . . 1 . . . 10 . . . . . . Insert Component 9 | . . . 3 . . . 1 . . . 5 . . . . . . Analyze 9 | . . . 4 . . . . . . . 5 . . . . . . Garrison Access Hacks 2 | . . . . . . . 1 . . . 1 . . . . . . Unlock Access 2 | . . . . . . . 1 . . . 1 . . . . . . Unauthorized Hacks 29 | . 4 . 6 . . . 9 . 8 . 1 . 1 . . . . Terminals 23 | . 4 . 6 . . . 9 . 4 . . . . . . . . Assimilate 3 | . . . . . . . 3 . . . . . . . . . . Botnet 16 | . 3 . 5 . . . 5 . 3 . . . . . . . . Operators 4 | . 1 . 1 . . . 1 . 1 . . . . . . . . Fabricators 2 | . . . . . . . . . . . 1 . 1 . . . . Prioritize 2 | . . . . . . . . . . . 1 . 1 . . . . Repair Stations . | . . . . . . . . . . . . . . . . . . Recycling Units 4 | . . . . . . . . . 4 . . . . . . . . Monitor 1 | . . . . . . . . . 1 . . . . . . . . Reject 1 | . . . . . . . . . 1 . . . . . . . . Recyclers 1 | . . . . . . . . . 1 . . . . . . . . Mask 1 | . . . . . . . . . 1 . . . . . . . . Scanalyzers . | . . . . . . . . . . . . . . . . . . Garrison Access . | . . . . . . . . . . . . . . . . . . Data Cores Recovered 1 | . . . . . . . . . . . . . 1 . . . . Used 1 | . . . . . . . . . . . . . 1 . . . . Hacking Detections 47 | . 4 1 14 . . . 13 3 3 . 3 2 4 . . . . Full Trace Events 10 | . 3 1 2 . . . 3 . . . 1 . . . . . . Feedback Events . | . . . . . . . . . . . . . . . . . . Feedback Blocked . | . . . . . . . . . . . . . . . . . . Robot Schematics Acquired 2 | . 1 . . . . . . . 1 . . . . . . . . Robots Built 16 | . . . . . . . . . 1 . 11 . 4 . . . . Authchips 9 | . . . . . . . . . 1 . 5 . 3 . . . . Time 679 | . . . . . . . . . 81 . 366 . 232 . . . . Total Robot Build Rating 49 | . . . . . . . . . 1 . 36 . 12 . . . . Part Schematics Acquired 8 | . . . 3 . . . . . . . 5 . . . . . . Parts Built . | . . . . . . . . . . . . . . . . . . Authchips . | . . . . . . . . . . . . . . . . . . Time . | . . . . . . . . . . . . . . . . . . Total Part Build Rating . | . . . . . . . . . . . . . . . . . . Parts Repaired 2 | . . . 2 . . . . . . . . . . . . . . Time 64 | . . . 64 . . . . . . . . . . . . . . Parts Recycled . | . . . . . . . . . . . . . . . . . . Recycled Matter . | . . . . . . . . . . . . . . . . . . Retrieved Matter . | . . . . . . . . . . . . . . . . . . Retrieved Components 19 | . . . . . . . 10 . 9 . . . . . . . . Parts Scanalyzed 9 | . . . 3 . . . 1 . . . 5 . . . . . . Part Schematics Acquired 8 | . . . 3 . . . . . . . 5 . . . . . . Parts Damaged . | . . . . . . . . . . . . . . . . . . Bothacking | -11 -10 -10 -9 -9 -9 -8 -8 -8 -7 -7 -7 -7 -7 -7 -7 -7 -7 ------------ Run | Jun Mat Min Mat Min Exi Min Mat Gar Fac Was Fac Gar Fac Low Low Zio Dee Used RIF Installer 3 | . . . . . . . . 2 . . . 1 . . . . . Zone Cloak 1 | . . . . . . . . 1 . . . . . . . . . Watcher Feeds 1 | . . . . . . . . . . . . 1 . . . . . Robots Hacked 56 | . . . . . 4 . . . 21 . 4 11 12 2 . 1 1 Non-combat 20 | . . . . . 3 . . . 8 . 3 . 6 . . . . Combat 36 | . . . . . 1 . . . 13 . 1 11 6 2 . 1 1 Robot Hacks Applied 68 | . . . . . 4 . . . 28 . 7 11 14 2 . 1 1 parse_system 15 | . . . . . 4 . . . 7 . 1 . . 1 . 1 1 generate_echo 1 | . . . . . . . . . . . 1 . . . . . . hold_bot 1 | . . . . . . . . . . . . . 1 . . . . map_walls 1 | . . . . . . . . . 1 . . . . . . . . find_fabricator 1 | . . . . . . . . . 1 . . . . . . . . find_dsf 1 | . . . . . . . . . 1 . . . . . . . . drop_inventory 5 | . . . . . . . . . 3 . 1 . 1 . . . . find_recycling 1 | . . . . . . . . . 1 . . . . . . . . map_route 3 | . . . . . . . . . 1 . . . 2 . . . . relay_feed 1 | . . . . . . . . . . . . . 1 . . . . find_garrison 2 | . . . . . . . . . 1 . 1 . . . . . . broadcast_data 1 | . . . . . . . . . . . . . 1 . . . . spike_heat 1 | . . . . . . . . . 1 . . . . . . . . overload_power 1 | . . . . . . . . . . . . . 1 . . . . reboot_system 1 | . . . . . . . . . 1 . . . . . . . . overwrite_iff 1 | . . . . . . . . . . . . . 1 . . . . formatsys_low 3 | . . . . . . . . . . . 2 . 1 . . . . formatsys_high 28 | . . . . . . . . . 10 . 1 11 5 1 . . . Relay Couplers Released 48 | . . . . . . . . 25 4 . . 19 . . . . . Machine Destruction 40 | . . . . . . . . 21 . . . 19 . . . . . Programmers 8 | . . . . . . . . 4 4 . . . . . . . . Attached 25 | . . . . . . . . 2 6 . 2 7 7 1 . . . Fabnet Peak Effective % . | . . . . . . . . . . . . . . . . . . Robots Rewired 14 | . . . . . . . . 5 . . . 9 . . . . . Allies Hacked 1 | . . . . . . . . . . . . 1 . . . . . Hacks Repelled . | . . . . . . . . . . . . . . . . . . Allies | -11 -10 -10 -9 -9 -9 -8 -8 -8 -7 -7 -7 -7 -7 -7 -7 -7 -7 -------- Run | Jun Mat Min Mat Min Exi Min Mat Gar Fac Was Fac Gar Fac Low Low Zio Dee Total Allies 85 | . . . . . . . 2 5 11 20 14 21 11 1 . . . Largest Group 34 | . . . . . . . 2 4 8 20 24 34 31 26 20 20 2 Highest-Rated Group 853 | . . . . . . . 20 76 138 499 612 853 807 684 495 493 60 Highest-Rated Ally 95 | . . . . . . . 10 39 32 35 35 95 95 95 39 39 32 Total Orders 74 | . . . . . . . 2 . 9 . 2 30 6 3 1 21 . STAY 28 | . . . . . . . 1 . 7 . 1 9 1 1 . 8 . ROAM 1 | . . . . . . . . . . . . . . . . 1 . FOLLOW 24 | . . . . . . . 1 . 2 . 1 12 2 1 . 5 . AID 13 | . . . . . . . . . . . . 1 3 1 1 7 . DROP 1 | . . . . . . . . . . . . 1 . . . . . PICKUP 4 | . . . . . . . . . . . . 4 . . . . . COLLECT 3 | . . . . . . . . . . . . 3 . . . . . Ally Attacks 648 | . . . . . . . . 39 33 . 72 83 148 15 16 231 11 Total Damage 13554 | . . . . . . . . 815 692 . 1040 1567 3300 403 540 4962 235 Kills 156 | . . . . . . . . 10 6 . 12 18 25 4 3 75 3 Allies Corrupted 7 | . . . . . . . . . 1 . . 1 . 1 . 4 . Allies Melted 2 | . . . . . . . . . 1 . . . 1 . . . . Intel | -11 -10 -10 -9 -9 -9 -8 -8 -8 -7 -7 -7 -7 -7 -7 -7 -7 -7 ------- Run | Jun Mat Min Mat Min Exi Min Mat Gar Fac Was Fac Gar Fac Low Low Zio Dee Robot Analysis Total 10 | . 3 . 5 . . . 2 . . . . . . . . . . Derelict Logs Recovered 3 | . . 1 . . . . . . . . . . . . 1 1 . Drone Launches . | . . . . . . . . . . . . . . . . . . Drone Recoveries . | . . . . . . . . . . . . . . . . . . Exploration | -11 -10 -10 -9 -9 -9 -8 -8 -8 -7 -7 -7 -7 -7 -7 -7 -7 -7 ------------- Run | Jun Mat Min Mat Min Exi Min Mat Gar Fac Was Fac Gar Fac Low Low Zio Dee Turns Passed 16975 | 38 474 576 1591 272 323 377 1575 2371 1800 148 904 2762 825 666 657 1058 558 Spaces Moved 9463 | 34 320 441 956 213 307 279 830 887 973 111 527 1444 524 434 259 593 331 Core 28 | 14 . 14 . . . . . . . . . . . . . . . Treads 1213 | . . . . . . . 178 887 148 . . . . . . . . Legs . | . . . . . . . . . . . . . . . . . . Wheels 7836 | 20 320 95 902 213 307 279 652 . 825 111 527 1444 524 434 259 593 331 Hover 386 | . . 332 54 . . . . . . . . . . . . . . Flight . | . . . . . . . . . . . . . . . . . . Fastest Speed 50 | 50 80 56 52 117 102 115 113 225 115 115 115 115 115 115 115 115 115 Average Speed 128 | 73 91 100 112 117 102 116 145 228 131 115 115 115 115 115 115 115 136 Slowest Speed 233 | 90 95 150 135 117 102 117 233 233 225 115 115 115 115 115 115 145 145 Overloaded Moves . | . . . . . . . . . . . . . . . . . . Propulsion Burnouts . | . . . . . . . . . . . . . . . . . . Robots Hopped . | . . . . . . . . . . . . . . . . . . Cave-ins Triggered . | . . . . . . . . . . . . . . . . . . Exploration Rate (%) 53 | 3 49 93 81 39 64 55 66 89 18 71 13 90 16 64 46 51 52 Regions Visited 17 Branch Regions 8 Pre-discovered Areas 2 | . . . . 1 1 . . . . . . . . . . . . Known Exits Taken 4 | . . . . . . 1 1 . . . 1 . 1 . . . . Unknown Exits Taken 9 | 1 1 1 1 1 1 . . . . . . . . 1 1 1 . Scrap Searched 5 | . . 1 . . . . . . . . . . . 1 3 . . Spaces Dug 49 | . . . . . . . 9 15 . . . 25 . . . . . Terrain Destroyed 442 | . . . 9 . . . 31 165 . . . 51 12 . . 135 39 Melee 1 | . . . . . . . 1 . . . . . . . . . . Projectile 27 | . . . 9 . . . 15 . . . . . . . . 2 1 AOE 414 | . . . . . . . 15 165 . . . 51 12 . . 133 38 Terrain Rammed . | . . . . . . . . . . . . . . . . . . Walls Destroyed . | . . . . . . . . . . . . . . . . . . Machines Disabled . | . . . . . . . . . . . . . . . . . . Actions | -11 -10 -10 -9 -9 -9 -8 -8 -8 -7 -7 -7 -7 -7 -7 -7 -7 -7 --------- Run | Jun Mat Min Mat Min Exi Min Mat Gar Fac Was Fac Gar Fac Low Low Zio Dee Total 13374 | 46 418 531 1256 227 315 318 1061 1121 1460 131 817 2506 726 598 619 830 394 Wait 2570 | . 43 47 103 6 . 31 88 22 367 20 263 815 148 150 351 114 2 Move 9445 | 33 319 440 955 212 306 278 829 885 973 110 526 1442 523 433 258 592 331 Hop . | . . . . . . . . . . . . . . . . . . Pick Up 225 | 7 10 8 44 2 2 . 31 34 18 1 4 31 7 1 3 11 11 Fast Attach . | . . . . . . . . . . . . . . . . . . Attach 116 | 6 2 6 19 1 1 2 12 16 11 . 7 11 5 3 3 6 5 Detach 6 | . . . . . 2 . . 1 . . . . 1 . 1 1 . Swap 73 | . . 2 10 . . 1 7 14 15 . . 6 7 . 1 4 6 Drop 121 | . 2 3 14 1 . . 19 25 17 . 2 20 2 3 2 2 9 Fire 589 | . 42 25 111 5 . 6 74 80 13 . 12 57 28 6 . 100 30 Melee 41 | . . . . . 4 . 1 1 35 . . . . . . . . Ram 2 | . . . . . . . . . . . . . 2 . . . . Kick . | . . . . . . . . . . . . . . . . . . Crush . | . . . . . . . . . . . . . . . . . . Escape Stasis 93 | . . . . . . . . 13 . . . 80 . . . . . Rewire 90 | . . . . . . . . 30 8 . 3 44 3 2 . . . Trap 3 | . . . . . . . . . 3 . . . . . . . . Miscellaneous . | . . . . . . . . . . . . . . . . . . Route ------- -11/Junkyard -10/Materials (discovered 3 exits: *Mat / *Min x2) -10/Mines (discovered 2 exits: *Mat x2) -9/Materials (discovered 4 exits: *Mat x3 / [*Min]) -9/Mines -9/Exiles (discovered 2 exits: [*Min x2]) -8/Mines -8/Materials (discovered 4 exits: *Fac x2 / Sto / Gar) -8/Garrison (discovered 3 exits: *Fac x3) -7/Factory -7/Waste -7/Factory -7/Garrison (discovered 3 exits: *Fac x3) -7/Factory (discovered 3 exits: [*Fac] / *Low x2) -7/Lower Caves -7/Lower Caves (discovered 2 exits: [*Fac] / *Zio) -7/Zion (discovered 2 exits: [*Dee] / [*Pro]) -7/Deep Caves History --------- Turn | Location | Event 11 | -11/Junkyard | Discovered new exit (range 16) 39 | -11/Junkyard | Entered Materials 61 | -10/Materials | Discovered new exit (range 16) 314 | -10/Materials | Build established: Mutant 447 | -10/Materials | Discovered new exit (range 17) 452 | -10/Materials | Central database locked down 481 | -10/Materials | Discovered new exit (range 6) 513 | -10/Materials | Entered Mines 564 | -10/Mines | Learned 8 Materials zone layouts 609 | -10/Mines | Discovered new exit (range 8) 646 | -10/Mines | Core integrity fell below 50% 678 | -10/Mines | Lost 3 parts (1p1n1w) 805 | -10/Mines | Found a damaged Exp. Sensor Array with a note attached 807 | -10/Mines | Found Prototype Device 895 | -10/Mines | Discovered new exit (range 4) 1089 | -10/Mines | Entered Materials 1089 | -9/Materials | Evolved 2 slots: Propulsion x2 1090 | -9/Materials | Identified exit to Materials 1373 | -9/Materials | Discovered new exit (range 16) 1785 | -9/Materials | Repaired Arm. Wheel 1819 | -9/Materials | Repaired Arm. Wheel 1853 | -9/Materials | Core integrity fell below 50% 2062 | -9/Materials | Discovered exit to Materials (range 16) 2181 | -9/Materials | Destroyed 8 combat bots 2680 | -9/Materials | Entered Mines 2806 | -9/Mines | A weapon hastily lodged in a ceiling crevice suddenly fell to the ground 2924 | -9/Mines | Learned location of Storage (-8) 2947 | -9/Mines | Deemed a non-threat by the Exiles lab entrance 2947 | -9/Mines | Discovered new exit (range 5) 2952 | -9/Mines | Entered Exiles 2967 | -9/Exiles | Discovered new exit (range 15) 2984 | -9/Exiles | Met 8R-AWN 3003 | -9/Exiles | Met EX-HEX 3033 | -9/Exiles | Met EX-BIN 3046 | -9/Exiles | Aligned with FarCom system 3047 | -9/Exiles | Given EX-Vault access code 3070 | -9/Exiles | Opened EX-Vault 3078 | -9/Exiles | Found Trap Reconfigurator 3102 | -9/Exiles | Warned to stay clear of 0b10 Research branches 3129 | -9/Exiles | Met EX-DEC 3157 | -9/Exiles | Learned location of Zion (-7) 3188 | -9/Exiles | Discovered new exit (range 10) 3275 | -9/Exiles | Left Exiles lab with Trap Reconfigurator 3275 | -9/Exiles | Entered Mines 3642 | -8/Mines | Discovered exit to Materials (range 8) 3652 | -8/Mines | Entered Materials 3652 | -8/Materials | Evolved 2 slots: Utility x2 3937 | -8/Materials | Discovered new exit (range 3) 4317 | -8/Materials | Identified exit to Storage 4458 | -8/Materials | Discovered new exit (range 10) 4723 | -8/Materials | System corruption reached 10% 4753 | -8/Materials | Lost 3 parts (1n2u) 5225 | -8/Materials | Identified exit to Garrison 5227 | -8/Materials | Entered Garrison 5308 | -8/Garrison | Phase Generator disabled 5559 | -8/Garrison | Destroyed 8 combat bots 5674 | -8/Garrison | Triggered checkpoint 5747 | -8/Garrison | Discovered new exit (range 7) 5990 | -8/Garrison | Garrison Relay disabled 6088 | -8/Garrison | Triggered checkpoint 6121 | -8/Garrison | Garrison Relay disabled 6360 | -8/Garrison | Triggered checkpoint 6402 | -8/Garrison | Triggered checkpoint 6428 | -8/Garrison | Garrison Relay disabled 6615 | -8/Garrison | Discovered new exit (range 10) 6658 | -8/Garrison | Triggered checkpoint 6675 | -8/Garrison | Core integrity fell below 50% 6736 | -8/Garrison | Triggered checkpoint 6743 | -8/Garrison | Garrison Relay disabled 7015 | -8/Garrison | Installed Relay Interface Framework 7184 | -8/Garrison | Discovered new exit (range 13) 7304 | -8/Garrison | Build established: Bothacker-Mutant 7346 | -8/Garrison | Triggered checkpoint 7357 | -8/Garrison | Expanded RIF knowledge: Zone Cloak 7405 | -8/Garrison | Garrison Relay disabled 7508 | -8/Garrison | Identified exit to Factory 7598 | -8/Garrison | Entered Factory 7598 | -7/Factory | Accompanied by 3 allies 7598 | -7/Factory | Evolved 2 slots: Utility x2 8347 | -7/Factory | Fabricated O-16 Technician? 8719 | -7/Factory | Discovered new exit (range 14) 9398 | -7/Factory | Sucked down chute 9398 | -7/Factory | Entered Waste 9399 | -7/Waste | Joined by Warlord forces that had cleared the area 9513 | -7/Waste | Discovered new exit (range 11) 9546 | -7/Waste | Entered Factory 9546 | -7/Factory | Accompanied by 20 allies 9797 | -7/Factory | Fabricated L-41 Fighter (x3) 9855 | -7/Factory | Fabricated H-55 Commando (x2) 9913 | -7/Factory | Fabricated H-55 Commando (x2) 9971 | -7/Factory | Fabricated H-55 Commando (x2) 10164 | -7/Factory | Fabricated H-55 Commando? 10421 | -7/Factory | Identified exit to Garrison 10450 | -7/Factory | Entered Garrison 10450 | -7/Garrison | Accompanied by 21 allies 10468 | -7/Garrison | Triggered checkpoint 10502 | -7/Garrison | Triggered checkpoint 10513 | -7/Garrison | Garrison Relay disabled 10640 | -7/Garrison | Triggered checkpoint 10640 | -7/Garrison | Triggered checkpoint 10656 | -7/Garrison | Triggered checkpoint 10663 | -7/Garrison | Garrison Relay disabled 10733 | -7/Garrison | Discovered new exit (range 9) 10808 | -7/Garrison | Garrison Relay disabled 11020 | -7/Garrison | Triggered checkpoint 11072 | -7/Garrison | Triggered checkpoint 11662 | -7/Garrison | Build established: Commander-Mutant 11750 | -7/Garrison | Discovered new exit (range 12) 11760 | -7/Garrison | Expanded RIF knowledge: Watcher Feeds 12627 | -7/Garrison | Discovered new exit (range 12) 12684 | -7/Garrison | Triggered checkpoint 12692 | -7/Garrison | Garrison Relay disabled 12721 | -7/Garrison | Garrison Relay disabled 12814 | -7/Garrison | Triggered checkpoint 13212 | -7/Garrison | Entered Factory 13212 | -7/Factory | Accompanied by 27 allies 13247 | -7/Factory | Identified exit to Lower Caves 13593 | -7/Factory | Discovered new exit (range 5) 13612 | -7/Factory | First assault squad dispatched 13795 | -7/Factory | System corruption reached 10% 13863 | -7/Factory | Fabricated H-55 Commando? 13936 | -7/Factory | Fabricated H-55 Commando (x2) 14037 | -7/Factory | Entered Lower Caves 14037 | -7/Lower Caves | Accompanied by 25 allies 14089 | -7/Lower Caves | Attracted the attention of an 0b10 checkpoint 14477 | -7/Lower Caves | Discovered new exit (range 11) 14703 | -7/Lower Caves | Entered another Lower Caves area 14703 | -7/Lower Caves | Accompanied by 20 allies 14708 | -7/Lower Caves | Discovered new exit (range 10) 14713 | -7/Lower Caves | Learned 4 Factory zone layouts 15172 | -7/Lower Caves | Discovered new exit (range 8) 15360 | -7/Lower Caves | Entered Zion 15360 | -7/Zion | Accompanied by 20 allies 15434 | -7/Zion | Given A8's code to call for help 15434 | -7/Zion | Discovered new exit (range 11) 15611 | -7/Zion | RIF detected upon attempting to enter Zion 15611 | -7/Zion | Attacked by Zionites 15613 | -7/Zion | Spotted 84-MF1(B) 15617 | -7/Zion | Spotted XQ-LYY(B) 15627 | -7/Zion | Allies destroyed XQ-LYY(B) 15733 | -7/Zion | Allies destroyed Imprinter 15793 | -7/Zion | Extracted access codes from Imprinter's data core 16009 | -7/Zion | Build established: Bothacker-Mutant 16093 | -7/Zion | Found Prototype Processor 16094 | -7/Zion | Identified Exp. Target Analyzer 16097 | -7/Zion | Found Exp. Targeting Computer 16391 | -7/Zion | Opened final containment barrier to the Deep Caves 16408 | -7/Zion | Discovered new exit (range 3) 16408 | -7/Zion | Saw the warning signs outside the Deep Caves entrance 16418 | -7/Zion | Entered Deep Caves 16418 | -7/Deep Caves | Accompanied by 2 allies 16538 | -7/Deep Caves | Z-Facility disabled 16549 | -7/Deep Caves | Core integrity fell below 50% 16575 | -7/Deep Caves | Found Prototype Protection 16576 | -7/Deep Caves | Identified Zio. Heavy Carapace 16592 | -7/Deep Caves | Lost 4 parts (1p1n2u) 16676 | -7/Deep Caves | Found Prototype Protection 16681 | -7/Deep Caves | Found Zio. Heavy Carapace 16943 | -7/Deep Caves | Spotted as-78744 16944 | -7/Deep Caves | Identified Zio. Weapon Casing 16965 | -7/Deep Caves | Build established: Mutant 16971 | -7/Deep Caves | Core integrity fell below 20% 16972 | -7/Deep Caves | Exposed GOLEM chamber 16973 | -7/Deep Caves | Triggered Deep Caves wall 16976 | -7/Deep Caves | Destroyed by as-78749 with Assembled Heavy Rifle Last Messages --------------- 16943_ Acquired 54 matter. 16944_ as-78744: "DSI9AT1D G8OHIBQ29FWG 26R186 QD12WHW8W33 TDK1 81FTS" 16944_ Identified Zio. Weapon Casing. 16952_ System corrupted: Matter fused (-9). 16954_ Zio. Heavy Carapace destroyed. 16959_ Arm. Treads destroyed. 16959_ Exp. Targeting Computer destroyed. 16959_ Zio. Laser-S destroyed. 16960_ Acquired 67 matter. 16968_ System corrupted: Component data lost. 16972_ Wall Chamber breached. 16972_ An Unknown Device tumbles out of the Wall Chamber. [Achievement: That's One Door That Should Stay Closed] 16973_ Arm. Huge Wheel destroyed. 16975_ Jacked as-78744... >>parse_system Reading system data... 16975_ Zio. Weapon Casing destroyed. 16975_ Zio. Phaser-S destroyed. 16975_ Deuterium Engine destroyed. Map ----- +----------------------------------------------------+ | ?????????????????????????????????????????????? | | ?????????????????????????????????????????????? | | ?????????????????????????????????????????????? | | ?????????????????????????????????????????????? | | ?????????????????????????????????????????????? | | ?????????????????????????????????????????????? | | ?????????????????????????????????????????????? | | ?????????????????????????????????????????????? | | ?????????????????????????????????????????????? | | ???????????????????? ???????????????????????? | | ?????????????????? ???????????????????????? | | ??????????????? ???????????????????????? | | ????????????? ???????????????????????? | | ??????????? ??###??????????????????? | | ?????????? g ??# #??????????????????? | | ?????????? = = ### ###????????????????? | | ????????? # ?????????????????? | | ????????? b! ;#?????????????????? | | ???????? l ###???????????????? | | ????????a a ! ????????????????? | | ???????? a #?????????????????? | | ??????? a a ! ##??????????????### | | ??????? a ba ! #?????????????## | | ?????? a a #?????????????# | | ??????" a a #??????????????# | | ????????# ! @ ##?????????????### | | ?????????" ! ;#???????????????? | | ????????"! ! b ##???######????### | | ????????"" ! ;#???? #????# | | ?????????" g ! ###???? #???# | | ?????????" !! ;#????# #???# | | ????????# G ] ##????# #???## | | ????????" ! #?????# ##???### | | ????????? *% ####### ####### | | ?????????g ] " | | ??????????" % Y ######## | | ?????????? ] #??????? | | ?????????? ; ##??????? | | ??????????? # ##???????? | | ??????????? ### ##????????? | | ??????????? # # #?######?????????? | | ???????????? #### ## ## ##????????????????? | | ???????????? #????# ?# ?###?????????????????? | | ???????????????????#??# ?????????????????????? | | ???????????????????????#?????????????????????? | | | | | | | | | | | +----------------------------------------------------+ Best States ------------- Heat Dissipation 59 Energy Generation 25 Energy Capacity 310 Matter Stores 300 Matter Capacity 300 Sight Range 18 Terrain Scan Density 10 Armor Coverage 1200 Resistance: TH 10 Weapon Shielding 100 Weapon Cycling 15 Evasion (%) 54 Targeting Accuracy 12 Target Analysis 8 Recoil Reduction 4 Offensive Hacking 20 Relay Coupler Types 3 Relay Coupler Value 98 Authchip Count 7 Item Schematics ----------------- Hacking Suite | -9/Materials | Scanalyzed Datajack | -9/Materials | Scanalyzed Mni. Grenade Launcher | -9/Materials | Scanalyzed Arm. Huge Wheel | -7/Factory | Scanalyzed Lgt. Deuterium Engine | -7/Factory | Scanalyzed Hrd. Heavy Armor Plating | -7/Factory | Scanalyzed Mni. Assault Cannon | -7/Factory | Scanalyzed Chainsword | -7/Factory | Scanalyzed Robot Schematics ------------------ O-16 Technician | -10/Materials | Hacked H-55 Commando | -7/Factory | Hacked Fabricated ------------ O-16 Technician | x1 | -7/Factory | Authchip L-41 Fighter | x3 | -7/Factory | Preloaded, Authchip H-55 Commando | x2 | -7/Factory | Authchip H-55 Commando | x2 | -7/Factory | Authchip H-55 Commando | x2 | -7/Factory | Authchip H-55 Commando | x2 | -7/Factory | Authchip H-55 Commando | x2 | -7/Factory | Authchip H-55 Commando | x2 | -7/Factory | Authchip Alien Tech Used ----------------- None Achievements -------------- Short-term Sacrifices That's One Door That Should Stay Closed We Are Legion Challenges ------------ None Game ------ Seed ThrowingSpreadMicroactuators Manual? 0 Play Time 02:24:42 Cumulative 147.5 hours Start 2023.07.14 @ 01:36:13 End 2023.07.14 @ 22:01:30 Sessions 2 Manual Loads 0 Difficulty Rogue Special Mode None Game No. 130 Rogue 130 Adventurer 0 Explorer 0 Win Type - Total 1 Types 1/0/0/0/0/0/0/0/0 Lore% 54 Gallery% 65 Achievement% 53 Wizard Run 0 Options --------- ASCII 0 Keyboard 0 Movement Numpad Keybinds 0 Fullscreen 2 Font 18/Smallcaps Map View 76x50 Tactical HUD 1 Map Filters NONE Filters NONE Steam 1 RUN: c1075ad2-b015-4f22-9e5f-aa8f618baed0